[Event "Austrian Women Bundesliga 2023-24"]
[Site "Austria"]
[Date "2024.04.13"]
[Round "8.16"]
[White "Mihelic, Vesna"]
[Black "Wielander, Magdalena"]
[Result "1-0"]
[ECO "C24"]
[WhiteElo "2157"]
[BlackElo "1622"]
[Annotator "RC"]
[PlyCount "109"]
[EventDate "2023.11.21"]
[EventType "team-tourn"]
[EventCountry "AUT"]
[SourceTitle "playchess.com"]
[Source "ChessBase"]
[SourceQuality "1"]
[TimeControl "40/5400+30:1800+30"]

1. e4 {[%emt 0:00:02]} e5 {[%emt 0:00:06]} 2. Nf3 {[%emt 0:00:05]} Nc6 {[%emt 0:00:05]} 3. Bc4 {[%emt 0:00:03]} Nf6 {[%emt 0:00:08]} 4. d3 {[%emt 0:00:08]} d5 {[%emt 0:00:21]} 5. exd5 {[%emt 0:00:48]} Nxd5 {[%emt 0:00:10]} 6. O-O {[%emt 0:01:04]} Be7 {[%emt 0:00:23]} 7. Re1 {[%emt 0:04:39]} f6 {[%emt 0:00:28]} 8. d4 {[%emt 0:16:40]} Nb6 {[%emt 0:01:00]} 9. Bb5 {[%emt 0:01:07]} Bg4 {[%emt 0:05:09]} 10. h3 {[%emt 0:03:27]} Bh5 {[%emt 0:04:28]} 11. g4 {[%emt 0:08:28]} Bg6 {[%emt 0:01:11]} 12. dxe5 {[%emt 0:02:57]} Qxd1 {[%emt 0:01:42]} 13. Rxd1 {[%emt 0:00:02]} Bxc2 {[%emt 0:01:02]} 14. Rd2 {[%emt 0:07:28]} Be4 {[%emt 0:05:27]} 15. exf6 {[%emt 0:00:22]} Bxf3 {[%emt 0:15:54]} 16. fxe7 {[%emt 0:00:21]} Kxe7 {[%emt 0:00:53]} 17. Rd3 {[%emt 0:04:54]} Rhf8 {[%emt 0:04:00]} 18. Bg5+ {[%emt 0:01:01]} Ke6 {[%emt 0:07:25]} 19. Nc3 {[%emt 0:02:20]} h6 {[%emt 0:07:04]} 20. Re1+ {[%emt 0:01:20]} Ne5 {[%emt 0:00:15]} 21. Bh4 {[%emt 0:02:15]} c6 {[%emt 0:07:43]} 22. Bg3 {[%emt 0:01:03]} Nbd7 {[%emt 0:01:07]} 23. Bc4+ {[%emt 0:00:46]} Bd5 {[%emt 0:03:45]} 24. Nxd5 {[%emt 0:00:33]} cxd5 {[%emt 0:00:18]} 25. Rxd5 {[%emt 0:00:39]} Kf6 {[%emt 0:01:26]} 26. Bxe5+ {[%emt 0:00:14]} Nxe5 {[%emt 0:00:10]} 27. Rdxe5 {[%emt 0:00:16]} Rad8 {[%emt 0:06:48]} 28. Rf5+ {[%emt 0:01:35]} Kg6 {[%emt 0:00:36]} 29. Re6+ {[%emt 0:00:21]} Rf6 {[%emt 0:01:45]} 30. Rexf6+ {[%emt 0:00:44]} gxf6 {[%emt 0:00:08]} 31. Rd5 {[%emt 0:00:06]} Re8 {[%emt 0:02:35]} 32. Bd3+ {[%emt 0:00:10]} Kf7 {[%emt 0:01:09]} 33. Rd7+ {[%emt 0:00:10]} Ke6 {[%emt 0:01:42]} 34. Rxb7 {[%emt 0:00:07]} Rd8 {[%emt 0:01:46]} 35. Bf5+ {[%emt 0:00:09]} Ke5 {[%emt 0:00:08]} 36. Rxa7 {[%emt 0:00:31]} Rd2 {[%emt 0:00:18]} 37. Rb7 {[%emt 0:00:15]} Kf4 {[%emt 0:00:37]} 38. Kg2 {[%emt 0:00:09]} Rd1 {[%emt 0:01:29]} 39. a4 {[%emt 0:00:17]} Ra1 {[%emt 0:00:16]} 40. Rb4+ {[%emt 0:00:18]} Ke5 {[%emt 0:00:13]} 41. b3 {[%emt 0:30:51]} Ra3 {[%emt 0:31:04]} 42. Bd3 {[%emt 0:00:24]} Kd5 {[%emt 0:01:20]} 43. Bc4+ {[%emt 0:00:11]} Kd4 {[%emt 0:00:39]} 44. Rb6 {[%emt 0:00:23]} Kc3 {[%emt 0:00:43]} 45. Rxf6 {[%emt 0:00:10]} Ra1 {[%emt 0:00:55]} 46. Rxh6 {[%emt 0:00:07]} Re1 {[%emt 0:00:29]} 47. a5 {[%emt 0:00:12]} Re7 {[%emt 0:00:16]} 48. a6 {[%emt 0:00:11]} Kb4 {[%emt 0:00:36]} 49. Rb6+ {[%emt 0:00:18]} Kc5 {[%emt 0:00:26]} 50. Rb7 {[%emt 0:00:09]} Re8 {[%emt 0:00:14]} 51. a7 {[%emt 0:00:27]} Ra8 {[%emt 0:00:20]} 52. Rd7 {[%emt 0:00:17]} Kb6 {[%emt 0:00:14]} 53. Bd5 {[%emt 0:00:09]} Rxa7 {[%emt 0:00:10]} 54. Rxa7 {[%emt 0:00:06]} Kxa7 {[%emt 0:00:02]} 55. g5 {[%emt 0:00:07]} 1-0

[Event "Austrian Women Bundesliga 2023-24"]
[Site "Austria"]
[Date "2024.04.13"]
[Round "8.17"]
[White "Berke, Ana"]
[Black "Katter, Katharina"]
[Result "1-0"]
[ECO "B53"]
[WhiteElo "2066"]
[BlackElo "1962"]
[Annotator "NA RC"]
[PlyCount "83"]
[EventDate "2023.11.21"]
[EventType "team-tourn"]
[EventCountry "AUT"]
[SourceTitle "playchess.com"]
[Source "ChessBase"]
[SourceQuality "1"]
[TimeControl "40/5400+30:1800+30"]

1. e4 {[%emt 0:00:06]} c5 {[%emt 0:00:08]} 2. Nf3 {[%emt 0:00:08]} d6 {[%emt 0:00:13]} 3. d4 {[%emt 0:00:09]} cxd4 {[%emt 0:00:14]} 4. Qxd4 {[%emt 0:00:04]} Nc6 {[%emt 0:00:23]} 5. Bb5 {[%emt 0:00:07]} a6 {[%emt 0:00:14]} 6. Bxc6+ {[%emt 0:00:33]} bxc6 {[%emt 0:00:09]} 7. c4 {[%emt 0:00:05]} e5 {[%emt 0:00:31]} 8. Qd3 {[%emt 0:00:06]} Ne7 {[%emt 0:00:24]} 9. c5 {[%emt 0:01:45]} Ng6 {[%emt 0:00:25]} 10. cxd6 {[%emt 0:00:49]} Qxd6 {[%emt 0:10:28]} 11. Qxd6 {[%emt 0:00:43]} Bxd6 {[%emt 0:00:15]} 12. O-O {[%emt 0:00:21]} a5 {[%emt 0:01:05]} 13. Be3 {[%emt 0:01:50]} Rb8 {[%emt 0:19:50]} 14. b3 {[%emt 0:04:22]} Ba6 {[%emt 0:07:42]} 15. Rc1 {[%emt 0:04:31]} Ke7 {[%emt 0:15:16]} 16. Nbd2 {[%emt 0:02:38]} Rhc8 {[%emt 0:04:32]} 17. Nc4 {[%emt 0:03:21]} Bxc4 {[%emt 0:08:32]} 18. Rxc4 {[%emt 0:00:45]} Rb4 {[%emt 0:00:15]} 19. Rac1 {[%emt 0:02:19]} Ra8 {[%emt 0:08:29]} 20. Rxc6 {[%emt 0:03:31]} Rxe4 {[%emt 0:04:46]} 21. Nd2 {[%emt 0:01:15]} Rg4 {[%emt 0:02:51]} 22. h3 {[%emt 0:02:18]} Rd4 {[%emt 0:10:20]} 23. Bxd4 {[%emt 0:01:20]} exd4 {[%emt 0:00:08]} 24. Nc4 {[%emt 0:04:39]} Bb4 {[%emt 0:00:40]} 25. g3 {[%emt 0:03:52]} Rd8 {[%emt 0:00:40]} 26. h4 {[%emt 0:02:38]} f6 {[%emt 0:00:31]} 27. a3 {[%emt 0:02:14]} Bc3 {[%emt 0:00:23]} 28. Rc7+ {[%emt 0:02:21]} Kf8 {[%emt 0:01:23]} 29. Kg2 {[%emt 0:01:16]} Ne5 {[%emt 0:00:31]} 30. Nxe5 {[%emt 0:01:10]} fxe5 {[%emt 0:00:02]} 31. Kf3 {[%emt 0:01:47]} Rb8 {[%emt 0:01:02]} 32. Rb1 {[%emt 0:03:10]} Rb6 {[%emt 0:00:58]} 33. Ke4 {[%emt 0:01:04]} Rf6 {[%emt 0:00:12]} 34. f3 {[%emt 0:01:03]} Rg6 {[%emt 0:00:30]} 35. b4 {[%emt 0:01:12]} axb4 {[%emt 0:00:43]} 36. axb4 {[%emt 0:00:08]} Rxg3 {[%emt 0:00:56]} 37. b5 {[%emt 0:00:21]} Rh3 {[%emt 0:02:40]} 38. b6 {[%emt 0:00:37]} Rxh4+ {[%emt 0:00:04]} 39. Kd5 {[%emt 0:00:23]} Ba5 {[%emt 0:00:31]} 40. Ra7 {[%emt 0:00:50]} e4 {[%emt 0:00:29]} 41. fxe4 {[%emt 0:30:50]} Rh5+ {[%emt 0:30:57]} 42. e5 {[%emt 0:00:25]} 1-0

[Event "Austrian Women Bundesliga 2023-24"]
[Site "Austria"]
[Date "2024.04.13"]
[Round "8.18"]
[White "Frey, Alisa"]
[Black "Kejzar, Petra"]
[Result "0-1"]
[ECO "B32"]
[WhiteElo "2016"]
[BlackElo "2049"]
[Annotator "NA RC"]
[PlyCount "100"]
[EventDate "2023.11.21"]
[EventType "team-tourn"]
[EventCountry "AUT"]
[SourceTitle "playchess.com"]
[Source "ChessBase"]
[SourceQuality "1"]
[TimeControl "40/5400+30:1800+30"]

1. e4 {[%emt 0:00:03]} c5 {[%emt 0:00:06]} 2. Nf3 {[%emt 0:00:05]} Nc6 {[%emt 0:00:14]} 3. d4 {[%emt 0:00:04]} cxd4 {[%emt 0:00:04]} 4. Nxd4 {[%emt 0:00:04]} e5 {[%emt 0:00:09]} 5. Nb5 {[%emt 0:00:10]} d6 {[%emt 0:00:07]} 6. c4 {[%emt 0:00:22]} Be6 {[%emt 0:00:28]} 7. N1c3 {[%emt 0:01:05]} a6 {[%emt 0:00:11]} 8. Na3 {[%emt 1:32:37]} g6 {[%emt 0:00:05]} 9. Be3 {[%emt 0:00:00]} Bg7 {[%emt 0:01:18]} 10. Nd5 {[%emt 0:00:00]} Nd4 {[%emt 0:10:12]} 11. Qa4+ {[%emt 0:00:00]} Bd7 {[%emt 0:05:22]} 12. Qb4 {[%emt 0:00:00]} Bc6 {[%emt 0:01:48]} 13. Bd3 {[%emt 0:02:30]} Nf6 {[%emt 0:05:46]} 14. f3 {[%emt 0:00:00]} O-O {[%emt 0:03:21]} 15. Nc2 {[%emt 0:00:00]} Nxc2+ {[%emt 0:10:11]} 16. Bxc2 {[%emt 0:00:00]} b5 {[%emt 0:03:41]} 17. Bd3 {[%emt 0:00:00]} Rb8 {[%emt 0:02:57]} 18. Qc3 {[%emt 0:00:00]} bxc4 {[%emt 0:02:48]} 19. Nxf6+ {[%emt 0:00:00]} Qxf6 {[%emt 0:00:33]} 20. Bxc4 {[%emt 0:00:00]} Rfc8 {[%emt 0:07:44]} 21. Rc1 {[%emt 0:00:00]} Bb5 {[%emt 0:05:05]} 22. b3 {[%emt 0:00:00]} Bh6 {[%emt 0:05:01]} 23. O-O {[%emt 0:00:00]} Bxe3+ {[%emt 0:02:58]} 24. Qxe3 {[%emt 0:00:00]} Bxc4 {[%emt 0:00:22]} 25. Rxc4 {[%emt 0:00:00]} Rxc4 {[%emt 0:00:28]} 26. bxc4 {[%emt 0:00:00]} Qd8 {[%emt 0:00:34]} 27. c5 {[%emt 0:00:00]} dxc5 {[%emt 0:04:00]} 28. Qxc5 {[%emt 0:00:00]} Rb5 {[%emt 0:00:24]} 29. Qe3 {[%emt 0:00:00]} Kg7 {[%emt 0:07:56]} 30. h3 {[%emt 0:00:00]} Rb2 {[%emt 0:02:23]} 31. Rf2 {[%emt 0:02:32]} Qd1+ {[%emt 0:00:24]} 32. Kh2 {[%emt 0:02:03]} Rb1 {[%emt 0:01:13]} 33. Qc5 {[%emt 0:00:44]} Qg1+ {[%emt 0:00:30]} 34. Kg3 {[%emt 0:00:08]} Rb5 {[%emt 0:00:42]} 35. Qc3 {[%emt 0:01:10]} h5 {[%emt 0:00:45]} 36. f4 {[%emt 0:02:44]} h4+ {[%emt 0:01:10]} 37. Kf3 {[%emt 0:00:07]} Qh2 {[%emt 0:00:44]} 38. Ke2 {[%emt 0:00:58]} Qg3 {[%emt 0:09:36]} 39. Qxg3 {[%emt 0:00:07]} hxg3 {[%emt 0:00:01]} 40. Rf1 {[%emt 0:01:19]} Rb2+ {[%emt 0:00:07]} 41. Ke3 {[%emt 0:02:31]} Rxg2 {[%emt 0:05:10]} 42. Ra1 {[%emt 0:04:29]} Rh2 {[%emt 0:00:22]} 43. fxe5 {[%emt 0:01:58]} g2 {[%emt 0:01:55]} 44. Kf2 {[%emt 0:00:37]} Rxh3 {[%emt 0:02:28]} 45. a4 {[%emt 0:04:20]} Rh1 {[%emt 0:00:29]} 46. Rg1 {[%emt 0:00:07]} Rxg1 {[%emt 0:00:21]} 47. Kxg1 {[%emt 0:00:04]} Kf8 {[%emt 0:00:12]} 48. Kxg2 {[%emt 0:00:22]} Ke7 {[%emt 0:00:05]} 49. Kf3 {[%emt 0:00:23]} Ke6 {[%emt 0:00:06]} 50. Kf4 {[%emt 0:04:54]} a5 {[%emt 0:00:05]} 0-1

[Event "Austrian Women Bundesliga 2023-24"]
[Site "Austria"]
[Date "2024.04.13"]
[Round "8.19"]
[White "Hiebler, Laura"]
[Black "Batyte, Daiva"]
[Result "1/2-1/2"]
[ECO "A34"]
[WhiteElo "1999"]
[BlackElo "2046"]
[Annotator "RC"]
[PlyCount "86"]
[EventDate "2023.11.21"]
[EventType "team-tourn"]
[EventCountry "AUT"]
[SourceTitle "playchess.com"]
[Source "ChessBase"]
[SourceQuality "1"]
[TimeControl "40/5400+30:1800+30"]

1. c4 {[%emt 0:00:03]} Nf6 {[%emt 0:00:20]} 2. Nc3 {[%emt 0:00:18]} c5 {[%emt 0:01:04]} 3. g3 {[%emt 0:00:40]} Nc6 {[%emt 0:00:33]} 4. Bg2 {[%emt 0:00:11]} e6 {[%emt 0:00:39]} 5. Nf3 {[%emt 0:02:28]} d5 {[%emt 0:01:32]} 6. cxd5 {[%emt 0:04:22]} Nxd5 {[%emt 0:01:44]} 7. O-O {[%emt 0:03:49]} Be7 {[%emt 0:03:51]} 8. Nxd5 {[%emt 0:06:42]} exd5 {[%emt 0:00:50]} 9. d4 {[%emt 0:00:56]} c4 {[%emt 0:00:36]} 10. b3 {[%emt 0:22:47]} cxb3 {[%emt 0:00:30]} 11. Qxb3 {[%emt 0:00:30]} O-O {[%emt 0:01:12]} 12. Bf4 {[%emt 0:01:18]} Na5 {[%emt 0:04:43]} 13. Qc2 {[%emt 0:06:05]} Nc4 {[%emt 0:02:41]} 14. e4 {[%emt 0:07:20]} Be6 {[%emt 0:00:35]} 15. Ne5 {[%emt 0:08:15]} Rc8 {[%emt 0:01:47]} 16. Qd3 {[%emt 0:01:07]} Bf6 {[%emt 0:02:17]} 17. Rac1 {[%emt 0:05:25]} b5 {[%emt 0:07:48]} 18. Qe2 {[%emt 0:07:06]} dxe4 {[%emt 0:01:29]} 19. Qxe4 {[%emt 0:00:30]} Nd6 {[%emt 0:01:20]} 20. Qe2 {[%emt 0:00:51]} Bxe5 {[%emt 0:03:21]} 21. Qxe5 {[%emt 0:01:20]} Nc4 {[%emt 0:01:35]} 22. Qxb5 {[%emt 0:00:57]} Qxd4 {[%emt 0:00:53]} 23. Rfd1 {[%emt 0:01:01]} Qb6 {[%emt 0:01:45]} 24. Qxb6 {[%emt 0:02:51]} axb6 {[%emt 0:01:32]} 25. Bd5 {[%emt 0:01:47]} Bxd5 {[%emt 0:03:16]} 26. Rxd5 {[%emt 0:00:12]} h6 {[%emt 0:00:14]} 27. Rd4 {[%emt 0:05:03]} Na5 {[%emt 0:01:05]} 28. Rxc8 {[%emt 0:01:48]} Rxc8 {[%emt 0:00:10]} 29. Rb4 {[%emt 0:00:32]} Nc4 {[%emt 0:03:06]} 30. g4 {[%emt 0:01:39]} g5 {[%emt 0:00:15]} 31. Bg3 {[%emt 0:00:09]} f6 {[%emt 0:01:40]} 32. Kf1 {[%emt 0:00:32]} Kf7 {[%emt 0:00:06]} 33. Ke2 {[%emt 0:00:16]} Rc6 {[%emt 0:01:56]} 34. a4 {[%emt 0:01:32]} Ke6 {[%emt 0:00:31]} 35. Kd3 {[%emt 0:01:36]} Kd5 {[%emt 0:02:26]} 36. f4 {[%emt 0:02:13]} gxf4 {[%emt 0:01:48]} 37. Bxf4 {[%emt 0:00:07]} Ne5+ {[%emt 0:00:19]} 38. Bxe5 {[%emt 0:01:34]} fxe5 {[%emt 0:00:23]} 39. Rb5+ {[%emt 0:00:56]} Ke6 {[%emt 0:00:02]} 40. h3 {[%emt 0:01:50]} Rd6+ {[%emt 0:00:32]} 41. Ke4 {[%emt 0:03:15]} Rd4+ {[%emt 0:00:05]} 42. Ke3 {[%emt 0:03:11]} Rd6 {[%emt 0:00:13]} 43. Ke4 {[%emt 0:00:18]} Rd4+ {[%emt 0:00:06]} 1/2-1/2

[Event "Austrian Women Bundesliga 2023-24"]
[Site "Austria"]
[Date "2024.04.13"]
[Round "8.20"]
[White "Landl, Margot"]
[Black "Tarmastin, Laura"]
[Result "1-0"]
[ECO "B01"]
[WhiteElo "1962"]
[BlackElo "1929"]
[Annotator "TA"]
[PlyCount "69"]
[EventDate "2023.11.21"]
[EventType "team-tourn"]
[EventCountry "AUT"]
[SourceTitle "playchess.com"]
[Source "ChessBase"]
[SourceQuality "1"]
[TimeControl "40/5400+30:1800+30"]

{[%evp 9,69,37,145,66,72,65,80,47,68,66,81,79,93,52,92,70,101,58,123,105,177,129,191,115,135,130,128,138,153,131,147,158,147,148,147,154,147,158,147,151,149,127,164,169,259,237,476,502,482,465,626,574,500,372,429,322,350,336,2629,2725,2725,2355]} 1. e4 {[%emt 0:00:04]} d5 {[%emt 0:00:45]} 2. exd5 {[%emt 0:00:15]} Qxd5 {[%emt 0:00:18]} 3. Nc3 {[%emt 0:00:26]} Qd8 {[%emt 0:00:19]} 4. d4 {[%emt 0:00:51]} Bf5 {[%emt 0:00:33]} 5. Nf3 {[%emt 0:00:58]} h6 {[%emt 0:01:16]} (5... e6 $14) 6. Bd3 {[%emt 0:08:52]} (6. Ne5 $1 $16) 6... Bxd3 $14 {[%emt 0:01:20]} 7. Qxd3 {[%emt 0:01:55]} ({But not} 7. cxd3 c6 $11) 7... c6 {[%emt 0:00:21] Inhibits Qb5.} 8. Bf4 {[%emt 0:04:53] White is better.} e6 {[%emt 0:02:44]} 9. Ne4 {[%emt 0:09:22] White has more active pieces.} Nf6 {[%emt 0:10:35]} 10. Nxf6+ $1 {[%emt 0:03:11]} gxf6 {[%emt 0:03:49]} 11. O-O-O {[%emt 0:02:43]} Bd6 {[%emt 0:08:35]} 12. Bg3 {[%emt 0:01:44]} Na6 {[%emt 0:02:39]} 13. a3 {[%emt 0:06:45] Repels Nb4} Bxg3 {[%emt 0:03:16]} ({Better is} 13... Qd7 $14) 14. hxg3 $16 {[%emt 0:00:29]} ({Don't play} 14. fxg3 Qe7 $14) 14... f5 {[%emt 0:07:32]} (14... Qd5 $16) 15. Rh4 {[%emt 0:08:43]} (15. Qe3 $18) 15... Nc7 {[%emt 0:04:41] [#]} (15... Qd6 $16 16. Kb1 Nc7) 16. Rdh1 {[%emt 0:00:50]} (16. Qb3 $1 $18 {[%cal Rb3b7]} b6 17. Ne5) 16... Qf6 {[%emt 0:00:13]} 17. Qd2 {[%emt 0:01:39][%cal Rh4h6]} O-O-O {[%emt 0:05:33]} 18. Rxh6 {[%emt 0:02:35]} Qg7 {[%emt 0:02:06]} 19. Ne5 {[%emt 0:05:49]} Rxh6 {[%emt 0:16:25]} 20. Qxh6 {[%emt 0:01:03]} Qxh6+ {[%emt 0:00:55]} 21. Rxh6 {[%emt 0:00:04]} Rxd4 {[%emt 0:00:53]} 22. Nxf7 {[%emt 0:04:55][%mdl 4096] Endgame. Hoping for Rh8+. KRN-KRN} b5 {[%emt 0:07:51]} 23. c3 {[%emt 0:06:04]} Rd5 {[%emt 0:01:10]} 24. Kc2 {[%emt 0:01:12]} Kb7 {[%emt 0:05:05]} 25. Rh7 {[%emt 0:03:21]} Kb6 {[%emt 0:00:18] [#]} 26. Rh8 $1 {[%emt 0:03:38]} Rd7 {[%emt 0:10:12]} (26... a6 {was necessary.} 27. Rb8+ Ka7) 27. Ne5 $18 {[%emt 0:01:04]} Rd5 {[%emt 0:00:23]} (27... Re7 {might work better.} 28. Rb8+ Kc5) 28. Rb8+ {[%emt 0:03:50]} Kc5 {[%emt 0:00:37]} 29. f4 {[%emt 0:01:46]} Rd6 {[%emt 0:03:36]} 30. Rb7 {[%emt 0:00:44][%csl LRa7,LRc7]} Ne8 {[%emt 0:00:28]} 31. Rxa7 {[%emt 0:04:18]} Nf6 {[%emt 0:00:17]} 32. Nf7 {[%emt 0:02:17]} Rd5 {[%emt 0:00:20]} 33. Ra6 {[%emt 0:01:46] Intending b4+ and mate.} Ne4 $2 {[%emt 0:00:17]} (33... Rd7) 34. b4+ {[%emt 0:00:30]} Kc4 {[%emt 0:00:09]} 35. Rxc6+ {[%emt 0:00:34] Weighted Error Value: White=0.23 (precise) /Black=0.42.  Mistake:       	White=2     	Black=6      Inaccurate:     	White=3     	Black=3      OK:         	White=10    	Black=3      Best:        	White=3     	Black=5      Strong:       	White=1     	---} 1-0

[Event "Austrian Women Bundesliga 2023-24"]
[Site "Austria"]
[Date "2024.04.14"]
[Round "9.1"]
[White "Katter, Katharina"]
[Black "Babiy, Olga"]
[Result "0-1"]
[ECO "A49"]
[WhiteElo "1962"]
[BlackElo "2306"]
[Annotator "TA"]
[PlyCount "88"]
[EventDate "2023.11.21"]
[EventType "team-tourn"]
[EventCountry "AUT"]
[SourceTitle "playchess.com"]
[Source "ChessBase"]
[SourceQuality "1"]
[TimeControl "40/5400+30:1800+30"]

{[%evp 12,88,25,10,21,10,34,37,35,18,22,24,35,26,22,18,22,12,10,9,13,-33,-53,-41,-35,-54,-28,-25,-30,-23,-26,-31,-21,-39,-51,-35,52,0,72,8,68,67,32,24,20,23,31,33,94,0,0,0,0,-6,-8,-104,-110,-330,-288,-288,-268,-266,-65,-268,-181,-185,-193,-180,-120,-120,-74,-75,0,-123,-113,-622,-610,-498,-440]} 1. d4 {[%emt 0:00:04]} Nf6 {[%emt 0:00:04]} 2. Nf3 {[%emt 0:00:12]} g6 {[%emt 0:00:06]} 3. g3 {[%emt 0:00:10]} Bg7 {[%emt 0:00:24]} 4. Bg2 {[%emt 0:00:10]} O-O {[%emt 0:01:28]} 5. O-O {[%emt 0:00:10]} d6 {[%emt 0:00:21]} 6. Nc3 {[%emt 0:00:21]} Nbd7 {[%emt 0:00:42]} 7. a4 {[%emt 0:00:13][%cal Ba2a4,Ba4a5][%mdl 32]} c6 {[%emt 0:03:00]} 8. a5 {[%emt 0:00:44]} Qc7 {[%emt 0:01:27]} 9. Qd3 {[%emt 0:01:49]} Re8 {[%emt 0:03:03] White is slightly better.} 10. Rd1 {[%emt 0:00:58]} b5 {[%emt 0:17:46]} 11. axb6 {[%emt 0:18:35]} Nxb6 {[%emt 0:00:22]} 12. e4 {[%emt 0:02:57]} a5 {[%emt 0:01:20]} 13. b3 {[%emt 0:11:45]} Nfd7 {[%emt 0:04:43]} 14. Bf4 {[%emt 0:07:26]} Ba6 {[%emt 0:01:32]} 15. Qd2 {[%emt 0:01:38]} c5 $1 {[%emt 0:00:18]} 16. dxc5 {[%emt 0:15:50]} (16. Rxa5 Nc4 $17) (16. Be3 $11) 16... Qxc5 $15 {[%emt 0:02:45]} 17. Na4 {[%emt 0:00:37]} Nxa4 {[%emt 0:03:42]} 18. Rxa4 {[%emt 0:00:02]} Bc3 {[%emt 0:00:14]} 19. Qe3 {[%emt 0:03:08]} Bb5 {[%emt 0:06:46]} 20. Ra2 {[%emt 0:00:31]} Rec8 {[%emt 0:00:41]} 21. Qxc5 {[%emt 0:04:45]} Nxc5 {[%emt 0:03:20]} 22. e5 {[%emt 0:00:42]} (22. Nd4 $2 Bxd4 23. Rxd4 e5 24. Rxd6 exf4 $19) 22... Be2 {[%emt 0:08:30]} 23. Rd5 {[%emt 0:02:58]} dxe5 {[%emt 0:19:30]} (23... Na6 $15 24. exd6 Nb4) 24. Bxe5 {[%emt 0:08:33]} ({White should play} 24. Nxe5 $14 f6 25. Nxg6 hxg6 26. Rxc5 Rxc5 27. Bxa8) 24... Ne6 {[%emt 0:00:49]} (24... e6 $11 {remains equal.} 25. Rxc5 Rxc5 26. Bxc3 Rxc3) 25. Nd4 {[%emt 0:10:33]} ({White should try} 25. Bxc3 $16 Rxc3 26. Ne1) 25... Nxd4 {[%emt 0:02:31]} (25... Bxd4 $1 $11 26. Bxd4 a4) 26. Bxd4 $14 {[%emt 0:00:07]} Ra6 {[%emt 0:05:36]} 27. Bxc3 {[%emt 0:01:41]} Rxc3 {[%emt 0:00:01]} 28. Re5 {[%emt 0:01:32]} Bd1 {[%emt 0:02:21]} 29. Be4 {[%emt 0:06:49][%cal Og1f1]} Rd6 {[%emt 0:08:10]} (29... Kf8 $14) 30. Rxe7 {[%emt 0:00:00]} (30. Rexa5 $6 Rd2 $11) (30. Kf1 $1 $16) 30... Rd2 $11 {[%emt 0:02:26]} 31. Rxa5 {[%emt 0:00:00] [#] Ra8+ is the strong threat.} Bf3 $1 {[%emt 0:00:09]} (31... Bxc2 32. Bd5 Rxd5 33. Rxd5) 32. Bxf3 {[%emt 0:00:41]} Rxf3 {[%emt 0:00:01][%mdl 4096] Endgame. KRR-KRR} 33. c4 {[%emt 0:00:46]} (33. Rc5 $11) 33... Rfxf2 $17 {[%emt 0:00:13]} 34. Ra1 $2 {[%emt 0:00:25]} (34. Rae5 $17) 34... Rg2+ $19 {[%emt 0:00:08]} (34... Rxh2 35. Re3 $17) 35. Kf1 {[%emt 0:00:37]} Rxh2 {[%emt 0:00:42]} 36. Kg1 {[%emt 0:00:24] Dodges Rh1+} Rdg2+ {[%emt 0:00:10]} 37. Kf1 {[%emt 0:00:05]} Rb2 {[%emt 0:00:20]} 38. Kg1 {[%emt 0:00:25] Inhibits Rh1+.} Rhg2+ {[%emt 0:00:06]} 39. Kh1 {[%emt 0:00:59]} Rxg3 {[%emt 0:00:39]} (39... Rgc2 $19 40. Rae1 Rxb3) 40. Rf1 $17 {[%emt 0:00:29]} Rh3+ {[%emt 0:00:53]} (40... Rbxb3 41. Rfxf7 Rgd3 42. Rg7+ Kf8 43. Rgf7+ Kg8 44. Rg7+ Kf8 45. Rgf7+ Kg8 $11) 41. Kg1 {[%emt 0:30:03]} Rg3+ {[%emt 0:30:30]} (41... Rhxb3 42. Rfxf7 Rh3 43. Rg7+ Kh8 44. Rd7 $11) (41... Rd3 $142) 42. Kh1 {[%emt 0:00:04]} Rc3 {[%emt 0:00:00] And now ...Rcc2 would win.} (42... Rbxb3 43. Rfxf7 Rh3+ 44. Kg2 $11) 43. Rc7 $2 {[%emt 0:00:00][%mdl 8192] [#]} (43. Rexf7 $17 Rcc2 (43... Rbxb3 44. Rc7 $17) (43... Rcxb3 44. Rf8+ Kg7 45. R1f7+ Kh6 46. Rh8 $15) 44. R1f3) 43... Rcc2 $1 $19 {[%emt 0:00:00] ( -> ...Rh2+)} ({Not} 43... Rcxb3 44. Rfxf7 Re3 45. Rg7+ Kf8 46. Rcf7+ Ke8 47. Kg1 $17) 44. Ra1 {[%emt 0:00:00]} Rxb3 {[%emt 0:00:00] Weighted Error Value: White=0.34/Black=0.19 (very precise) .  Loses game:     	White=3     	---        Mistake:       	White=5     	Black=6      Inaccurate:     	White=1     	Black=2      OK:         	White=14    	Black=14     Best:        	White=2     	Black=3      Strong:       	---       	Black=3} 0-1